{"text_format":"3","workbook":"xlsx","n_sheets":2,"sheets":["Aprīkojuma inventarizācija","Iestatījumi"],"not_rendered":{"defined_names":4},"read":"whole","date_system":"1900"}

{"sheet":"Aprīkojuma inventarizācija","index":0,"n_rows":35,"n_cols":6,"rows_kept":35,"merged":[[0,1,2,2],[0,4,0,5]]}
[]
[{"$nulls":4},"Atzīmēt vienumus, kas ir vecāki par:"]
[{"$nulls":4},4]
[]
[null,"APRĪKOJUMA ID","VIENUMA NOSAUKUMS","PIESAISTĪTS","IZSNIEGŠANAS DATUMS","VIENUMA VECUMS"]
[null,"ITEM0001","krēsls","1. darbinieks",{"$f":"TODAY()-25","v":"2012-12-02"},{"$f":"IF(tabula_aprīkojuma_inventarizācija[[#This Row],[IZSNIEGŠANAS DATUMS]]<>\"\",TODAY()-tabula_aprīkojuma_inventarizācija[[#This Row],[IZSNIEGŠANAS DATUMS]],\"\")","v":{"v":25,"d":"25 Dienas"}}]
[null,"ITEM0002","lāzerprinteris","2. darbinieks",{"$f":"TODAY()-479","v":"2011-09-05"},{"$f":"IF(tabula_aprīkojuma_inventarizācija[[#This Row],[IZSNIEGŠANAS DATUMS]]<>\"\",TODAY()-tabula_aprīkojuma_inventarizācija[[#This Row],[IZSNIEGŠANAS DATUMS]],\"\")","v":{"v":479,"d":"479 Dienas"}}]
[null,"ITEM0003","skeneris","3. darbinieks",{"$f":"TODAY()-177","v":"2012-07-03"},{"$f":"IF(tabula_aprīkojuma_inventarizācija[[#This Row],[IZSNIEGŠANAS DATUMS]]<>\"\",TODAY()-tabula_aprīkojuma_inventarizācija[[#This Row],[IZSNIEGŠANAS DATUMS]],\"\")","v":{"v":177,"d":"177 Dienas"}}]
[null,"ITEM0004","lāzerprinteris","7. darbinieks",{"$f":"TODAY()-18","v":"2012-12-09"},{"$f":"IF(tabula_aprīkojuma_inventarizācija[[#This Row],[IZSNIEGŠANAS DATUMS]]<>\"\",TODAY()-tabula_aprīkojuma_inventarizācija[[#This Row],[IZSNIEGŠANAS DATUMS]],\"\")","v":{"v":18,"d":"18 Dienas"}}]
[null,"ITEM0005","kafijas automāts","20. darbinieks",{"$f":"TODAY()-227","v":"2012-05-14"},{"$f":"IF(tabula_aprīkojuma_inventarizācija[[#This Row],[IZSNIEGŠANAS DATUMS]]<>\"\",TODAY()-tabula_aprīkojuma_inventarizācija[[#This Row],[IZSNIEGŠANAS DATUMS]],\"\")","v":{"v":227,"d":"227 Dienas"}}]
[null,"ITEM0006","skeneris","14. darbinieks",{"$f":"TODAY()-50","v":"2012-11-07"},{"$f":"IF(tabula_aprīkojuma_inventarizācija[[#This Row],[IZSNIEGŠANAS DATUMS]]<>\"\",TODAY()-tabula_aprīkojuma_inventarizācija[[#This Row],[IZSNIEGŠANAS DATUMS]],\"\")","v":{"v":50,"d":"50 Dienas"}}]
[null,"ITEM0007","galds","4. darbinieks",{"$f":"TODAY()-120","v":"2012-08-29"},{"$f":"IF(tabula_aprīkojuma_inventarizācija[[#This Row],[IZSNIEGŠANAS DATUMS]]<>\"\",TODAY()-tabula_aprīkojuma_inventarizācija[[#This Row],[IZSNIEGŠANAS DATUMS]],\"\")","v":{"v":120,"d":"120 Dienas"}}]
[null,"ITEM0008","kopētājs","12. darbinieks",{"$f":"TODAY()-499","v":"2011-08-16"},{"$f":"IF(tabula_aprīkojuma_inventarizācija[[#This Row],[IZSNIEGŠANAS DATUMS]]<>\"\",TODAY()-tabula_aprīkojuma_inventarizācija[[#This Row],[IZSNIEGŠANAS DATUMS]],\"\")","v":{"v":499,"d":"499 Dienas"}}]
[null,"ITEM0009","otrs monitors","8. darbinieks",{"$f":"TODAY()-30","v":"2012-11-27"},{"$f":"IF(tabula_aprīkojuma_inventarizācija[[#This Row],[IZSNIEGŠANAS DATUMS]]<>\"\",TODAY()-tabula_aprīkojuma_inventarizācija[[#This Row],[IZSNIEGŠANAS DATUMS]],\"\")","v":{"v":30,"d":"30 Dienas"}}]
[null,"ITEM0010","baltā tāfele","19. darbinieks",{"$f":"TODAY()-50","v":"2012-11-07"},{"$f":"IF(tabula_aprīkojuma_inventarizācija[[#This Row],[IZSNIEGŠANAS DATUMS]]<>\"\",TODAY()-tabula_aprīkojuma_inventarizācija[[#This Row],[IZSNIEGŠANAS DATUMS]],\"\")","v":{"v":50,"d":"50 Dienas"}}]
[null,"ITEM0011","kopētājs","12. darbinieks",{"$f":"TODAY()-450","v":"2011-10-04"},{"$f":"IF(tabula_aprīkojuma_inventarizācija[[#This Row],[IZSNIEGŠANAS DATUMS]]<>\"\",TODAY()-tabula_aprīkojuma_inventarizācija[[#This Row],[IZSNIEGŠANAS DATUMS]],\"\")","v":{"v":450,"d":"450 Dienas"}}]
[null,"ITEM0012","rakstāmpiederumi","18. darbinieks",{"$f":"TODAY()-420","v":"2011-11-03"},{"$f":"IF(tabula_aprīkojuma_inventarizācija[[#This Row],[IZSNIEGŠANAS DATUMS]]<>\"\",TODAY()-tabula_aprīkojuma_inventarizācija[[#This Row],[IZSNIEGŠANAS DATUMS]],\"\")","v":{"v":420,"d":"420 Dienas"}}]
[null,"ITEM0013","otrs monitors","8. darbinieks",{"$f":"TODAY()-250","v":"2012-04-21"},{"$f":"IF(tabula_aprīkojuma_inventarizācija[[#This Row],[IZSNIEGŠANAS DATUMS]]<>\"\",TODAY()-tabula_aprīkojuma_inventarizācija[[#This Row],[IZSNIEGŠANAS DATUMS]],\"\")","v":{"v":250,"d":"250 Dienas"}}]
[null,"ITEM0014","kafijas automāts","9. darbinieks",{"$f":"TODAY()-45","v":"2012-11-12"},{"$f":"IF(tabula_aprīkojuma_inventarizācija[[#This Row],[IZSNIEGŠANAS DATUMS]]<>\"\",TODAY()-tabula_aprīkojuma_inventarizācija[[#This Row],[IZSNIEGŠANAS DATUMS]],\"\")","v":{"v":45,"d":"45 Dienas"}}]
[null,"ITEM0015","rakstāmpiederumi","13. darbinieks",{"$f":"TODAY()-502","v":"2011-08-13"},{"$f":"IF(tabula_aprīkojuma_inventarizācija[[#This Row],[IZSNIEGŠANAS DATUMS]]<>\"\",TODAY()-tabula_aprīkojuma_inventarizācija[[#This Row],[IZSNIEGŠANAS DATUMS]],\"\")","v":{"v":502,"d":"502 Dienas"}}]
[null,"ITEM0016","skeneris","1. darbinieks",{"$f":"TODAY()-350","v":"2012-01-12"},{"$f":"IF(tabula_aprīkojuma_inventarizācija[[#This Row],[IZSNIEGŠANAS DATUMS]]<>\"\",TODAY()-tabula_aprīkojuma_inventarizācija[[#This Row],[IZSNIEGŠANAS DATUMS]],\"\")","v":{"v":350,"d":"350 Dienas"}}]
[null,"ITEM0017","kopētājs","19. darbinieks",{"$f":"TODAY()-125","v":"2012-08-24"},{"$f":"IF(tabula_aprīkojuma_inventarizācija[[#This Row],[IZSNIEGŠANAS DATUMS]]<>\"\",TODAY()-tabula_aprīkojuma_inventarizācija[[#This Row],[IZSNIEGŠANAS DATUMS]],\"\")","v":{"v":125,"d":"125 Dienas"}}]
[null,"ITEM0018","baltā tāfele","15. darbinieks",{"$f":"TODAY()-90","v":"2012-09-28"},{"$f":"IF(tabula_aprīkojuma_inventarizācija[[#This Row],[IZSNIEGŠANAS DATUMS]]<>\"\",TODAY()-tabula_aprīkojuma_inventarizācija[[#This Row],[IZSNIEGŠANAS DATUMS]],\"\")","v":{"v":90,"d":"90 Dienas"}}]
[null,"ITEM0019","krēsls","16. darbinieks",{"$f":"TODAY()-730","v":"2010-12-28"},{"$f":"IF(tabula_aprīkojuma_inventarizācija[[#This Row],[IZSNIEGŠANAS DATUMS]]<>\"\",TODAY()-tabula_aprīkojuma_inventarizācija[[#This Row],[IZSNIEGŠANAS DATUMS]],\"\")","v":{"v":730,"d":"730 Dienas"}}]
[null,"ITEM0020","putekļu lupatiņa (1 kompl.)","3. darbinieks",{"$f":"TODAY()-540","v":"2011-07-06"},{"$f":"IF(tabula_aprīkojuma_inventarizācija[[#This Row],[IZSNIEGŠANAS DATUMS]]<>\"\",TODAY()-tabula_aprīkojuma_inventarizācija[[#This Row],[IZSNIEGŠANAS DATUMS]],\"\")","v":{"v":540,"d":"540 Dienas"}}]
[null,"ITEM0021","lāzerprinteris","7. darbinieks",{"$f":"TODAY()-18","v":"2012-12-09"},{"$f":"IF(tabula_aprīkojuma_inventarizācija[[#This Row],[IZSNIEGŠANAS DATUMS]]<>\"\",TODAY()-tabula_aprīkojuma_inventarizācija[[#This Row],[IZSNIEGŠANAS DATUMS]],\"\")","v":{"v":18,"d":"18 Dienas"}}]
[null,"ITEM0022","klēpjdators","8. darbinieks",{"$f":"TODAY()-283","v":"2012-03-19"},{"$f":"IF(tabula_aprīkojuma_inventarizācija[[#This Row],[IZSNIEGŠANAS DATUMS]]<>\"\",TODAY()-tabula_aprīkojuma_inventarizācija[[#This Row],[IZSNIEGŠANAS DATUMS]],\"\")","v":{"v":283,"d":"283 Dienas"}}]
[null,"ITEM0023","rakstāmpiederumi","9. darbinieks",{"$f":"TODAY()-479","v":"2011-09-05"},{"$f":"IF(tabula_aprīkojuma_inventarizācija[[#This Row],[IZSNIEGŠANAS DATUMS]]<>\"\",TODAY()-tabula_aprīkojuma_inventarizācija[[#This Row],[IZSNIEGŠANAS DATUMS]],\"\")","v":{"v":479,"d":"479 Dienas"}}]
[null,"ITEM0024","lāzerprinteris","19. darbinieks",{"$f":"TODAY()-355","v":"2012-01-07"},{"$f":"IF(tabula_aprīkojuma_inventarizācija[[#This Row],[IZSNIEGŠANAS DATUMS]]<>\"\",TODAY()-tabula_aprīkojuma_inventarizācija[[#This Row],[IZSNIEGŠANAS DATUMS]],\"\")","v":{"v":355,"d":"355 Dienas"}}]
[null,"ITEM0025","galds","7. darbinieks",{"$f":"TODAY()-28","v":"2012-11-29"},{"$f":"IF(tabula_aprīkojuma_inventarizācija[[#This Row],[IZSNIEGŠANAS DATUMS]]<>\"\",TODAY()-tabula_aprīkojuma_inventarizācija[[#This Row],[IZSNIEGŠANAS DATUMS]],\"\")","v":{"v":28,"d":"28 Dienas"}}]
[null,"ITEM0026","baltā tāfele","8. darbinieks",{"$f":"TODAY()-28","v":"2012-11-29"},{"$f":"IF(tabula_aprīkojuma_inventarizācija[[#This Row],[IZSNIEGŠANAS DATUMS]]<>\"\",TODAY()-tabula_aprīkojuma_inventarizācija[[#This Row],[IZSNIEGŠANAS DATUMS]],\"\")","v":{"v":28,"d":"28 Dienas"}}]
[null,"ITEM0027","klēpjdators","19. darbinieks",{"$f":"TODAY()-736","v":"2010-12-22"},{"$f":"IF(tabula_aprīkojuma_inventarizācija[[#This Row],[IZSNIEGŠANAS DATUMS]]<>\"\",TODAY()-tabula_aprīkojuma_inventarizācija[[#This Row],[IZSNIEGŠANAS DATUMS]],\"\")","v":{"v":736,"d":"736 Dienas"}}]
[null,"ITEM0028","galds","12. darbinieks",{"$f":"TODAY()-68","v":"2012-10-20"},{"$f":"IF(tabula_aprīkojuma_inventarizācija[[#This Row],[IZSNIEGŠANAS DATUMS]]<>\"\",TODAY()-tabula_aprīkojuma_inventarizācija[[#This Row],[IZSNIEGŠANAS DATUMS]],\"\")","v":{"v":68,"d":"68 Dienas"}}]
[null,"ITEM0029","skeneris","14. darbinieks",{"$f":"TODAY()-67","v":"2012-10-21"},{"$f":"IF(tabula_aprīkojuma_inventarizācija[[#This Row],[IZSNIEGŠANAS DATUMS]]<>\"\",TODAY()-tabula_aprīkojuma_inventarizācija[[#This Row],[IZSNIEGŠANAS DATUMS]],\"\")","v":{"v":67,"d":"67 Dienas"}}]
[null,"ITEM0030","kafijas automāts","3. darbinieks",{"$f":"TODAY()-149","v":"2012-07-31"},{"$f":"IF(tabula_aprīkojuma_inventarizācija[[#This Row],[IZSNIEGŠANAS DATUMS]]<>\"\",TODAY()-tabula_aprīkojuma_inventarizācija[[#This Row],[IZSNIEGŠANAS DATUMS]],\"\")","v":{"v":149,"d":"149 Dienas"}}]

{"sheet":"Iestatījumi","index":1,"n_rows":23,"n_cols":4,"rows_kept":23}
[]
[]
[null,"DARBINIEKI",null,"VIENUMI"]
[null,"1. darbinieks",null,"krēsls"]
[null,"2. darbinieks",null,"kafijas automāts"]
[null,"3. darbinieks",null,"kopētājs"]
[null,"4. darbinieks",null,"galddators"]
[null,"5. darbinieks",null,"putekļu lupatiņa (1 kompl.)"]
[null,"6. darbinieks",null,"otrs monitors"]
[null,"7. darbinieks",null,"tintes printeris"]
[null,"8. darbinieks",null,"klēpjdators"]
[null,"9. darbinieks",null,"lāzerprinteris"]
[null,"10. darbinieks",null,"marķieri (3 gab. iepakojums)"]
[null,"11. darbinieks",null,"skeneris"]
[null,"12. darbinieks",null,"rakstāmpiederumi"]
[null,"13. darbinieks",null,"galds"]
[null,"14. darbinieks",null,"USB zibatmiņa"]
[null,"15. darbinieks",null,"baltā tāfele"]
[null,"16. darbinieks"]
[null,"17. darbinieks"]
[null,"18. darbinieks"]
[null,"19. darbinieks"]
[null,"20. darbinieks"]